Cogmind - Beta 12 @@@ ROGUE MODE // 2023.05.25 @ 11:20:26 Player: Mr Goldstein Result: Self-destructed Performance ------------- Evolutions (2) 1000 Regions Visited (10) 2000 Robots Destroyed (211) 1055 Value Destroyed (6596) 6596 Prototype IDs (30) 600 Alien Tech Used (0) 0 Bonus (1896) 1896 TOTAL SCORE: 13147 Bonus ------- High Alert Combat Kills 1884 Entered Garrisons 400 Used RIF Installer 1500 Aligned with FarCom 300 Friendly Fire -2188 Cogmind --------- Core Integrity 263/550 Matter 100/300 Energy 150/150 System Corruption 5% Temperature Cool (0) Movement Core (550) Ox10 Location -8/Garrison Parts ------- > --- POWER (1) -------- Micro Nuclear Core > --- PROPULSION (4) --- (None) > --- UTILITY (4) ------ Large Storage Unit Core Shielding Core Shielding Recalibrator > --- WEAPON (2) ------- Heavy Hammer > --- INVENTORY (15) --- Light Angular Momentum Engine YI-UF0's Bottomless Matter Pit (521) Relay Coupler [NC] (39) Relay Coupler [Grunt] (27) AWS/Thermal Improved Assault Rifle Improved Assault Rifle Minigun Rocket Launcher Rocket Launcher YI-UF0's Doublenader Datajack Remote Datajack Peak State ------------ > --- POWER ------------ Micro Nuclear Core > --- PROPULSION ------- Compact Wheel > --- UTILITY ---------- Large Storage Unit Core Shielding Core Shielding Recalibrator > --- WEAPON ----------- AWS/Thermal > --- INVENTORY -------- Light Angular Momentum Engine YI-UF0's Bottomless Matter Pit Relay Coupler [NC] Relay Coupler [Grunt] Improved Assault Rifle Improved Assault Rifle Minigun Rocket Launcher Rocket Launcher YI-UF0's Doublenader Datajack Remote Datajack Heavy Hammer [Rating: 32] Favorites ----------- Power Ion Engine Engine Ion Engine Power Core Micro Nuclear Core Propulsion Wheel Wheel Wheel Utility Large Storage Unit Device Heat Sink Storage Large Storage Unit Processor Improved Signal Interpreter Protection Weapon Shielding Weapon Light Assault Rifle Energy Gun AWS/Thermal Ballistic Gun Light Assault Rifle Launcher Grenade Launcher Special Weapon Plasma Cutter Impact Weapon Heavy Hammer Build | -11 -10 -10 -9 -9 -9 -8 -8 -8 -8 -8 ------- Run | Jun Mat Min Mat Min Exi Min Mat Gar Mat Gar Slots Evolved 4 | . . . 2 . . . 2 . . . Power . | . . . . . . . . . . . Propulsion 2 | . . . . . . . 2 . . . Utility 2 | . . . 2 . . . . . . . Weapon . | . . . . . . . . . . . Parts Attached 121 | 6 7 6 37 3 . . 19 21 15 7 Power 8 | 1 . . 2 1 . . 3 1 . . Engine 7 | 1 . . 2 1 . . 3 . . . Core 1 | . . . . . . . . 1 . . Reactor . | . . . . . . . . . . . Propulsion 15 | 2 2 . 4 . . . 2 1 4 . Treads . | . . . . . . . . . . . Leg . | . . . . . . . . . . . Wheel 15 | 2 2 . 4 . . . 2 1 4 . Hover . | . . . . . . . . . . . Flight . | . . . . . . . . . . . Utility 28 | 1 3 2 9 . . . 5 3 3 2 Device 5 | . . . 4 . . . . . . 1 Storage 4 | 1 1 1 . . . . . . 1 . Processor 1 | . . . . . . . . 1 . . Hackware . | . . . . . . . . . . . Protection 18 | . 2 1 5 . . . 5 2 2 1 Artifact . | . . . . . . . . . . . Weapon 70 | 2 2 4 22 2 . . 9 16 8 5 Energy Gun 2 | . . . . . . . . . . 2 Energy Cannon . | . . . . . . . . . . . Ballistic Gun 28 | 2 . 2 12 . . . 5 3 4 . Ballistic Cannon . | . . . . . . . . . . . Launcher 32 | . 2 1 10 2 . . 4 7 4 2 Special Weapon 1 | . . 1 . . . . . . . . Impact Weapon 7 | . . . . . . . . 6 . 1 Slashing Weapon . | . . . . . . . . . . . Piercing Weapon . | . . . . . . . . . . . Special Melee Weapon . | . . . . . . . . . . . Unidentified Prototypes 5 | . . 2 1 . . . 2 . . . Parts Lost 27 | . 1 . 9 1 . . 1 10 2 3 Power 3 | . . . 1 1 . . . 1 . . Propulsion 11 | . 1 . 2 . . . 1 3 2 2 Utility 11 | . . . 5 . . . . 5 . 1 Weapon 2 | . . . 1 . . . . 1 . . Highest Loss Streak 4 | . 1 . 3 1 . . 1 4 2 2 To Critical Strikes . | . . . . . . . . . . . Average Slot Usage (%) 80 | . 99 99 92 88 88 88 86 58 60 54 Engine 8 | . 14 14 11 11 11 11 8 5 . . Core 2 | . . . . . . . . 1 9 9 Wheel 20 | . 27 28 20 22 22 22 25 18 19 3 Device 4 | . . . 5 22 22 22 7 . . 6 Storage 10 | . 14 14 11 11 11 11 9 9 9 9 Protection 13 | . 13 14 22 . . . 18 6 4 16 Ballistic Gun 12 | . 19 6 17 . . . 12 7 15 . Launcher 7 | . 8 11 4 22 22 22 5 7 2 3 Impact Weapon 1 | . . . . . . . . 2 . 5 Naked Turns . | . . . . . . . . . . . Heaviest Build 52 | 13 30 31 42 40 33 33 44 43 52 38 Greatest Support 52 | 26 26 20 22 22 22 22 42 32 52 32 Greatest Overweight (x) 12 | 2 1 1 3 1 1 1 1 10 10 12 Average Overweight (x) 1 | . . 1 1 1 1 1 . 1 1 4 Largest Inventory Capacity 15 | 8 15 15 15 15 15 15 15 15 15 15 Average Capacity 14 | 7 12 15 15 15 15 15 15 15 15 15 Most Carried 15 | 1 14 15 15 15 15 15 15 15 15 15 Average Carried 13 | . 10 14 14 15 14 15 14 13 14 14 Final Capacity 15 | 8 15 15 15 15 15 15 15 15 15 15 Final Carried 15 | 1 14 14 15 15 15 15 15 15 15 14 Class Distribution -------------------- 75% | Mutant 24% | Scavenger-Mutant Dominant Class ---------------- Mutant | -10/Materials Mutant | -10/Mines Mutant | -9/Materials Mutant | -9/Mines Mutant | -9/Exiles Mutant | -8/Mines Scavenger-Mutant | -8/Materials Scavenger-Mutant | -8/Garrison Scavenger-Mutant | -8/Materials Mutant | -8/Garrison Resources | -11 -10 -10 -9 -9 -9 -8 -8 -8 -8 -8 ----------- Run | Jun Mat Min Mat Min Exi Min Mat Gar Mat Gar Matter Collected 4768 | 153 750 60 1248 . . 4 779 1126 600 48 Remotely . | . . . . . . . . . . . Salvage Created 5679 | . 762 120 2290 89 . 4 708 766 777 163 Parts 404 | . 65 5 176 4 . 2 54 47 47 4 Haulers Intercepted 10 | . 2 . 4 . . . 1 . 3 . Recyclers Shooed 4 | . . . 2 . . . 2 . . . Parts Field Recycled . | . . . . . . . . . . . Retrieved Matter . | . . . . . . . . . . . Parts Self-Destructed . | . . . . . . . . . . . Prevented . | . . . . . . . . . . . Kills | -11 -10 -10 -9 -9 -9 -8 -8 -8 -8 -8 ------- Run | Jun Mat Min Mat Min Exi Min Mat Gar Mat Gar Combat Hostiles Destroyed 156 | . 31 . 50 3 . 1 20 32 15 4 Guns 48 | . 3 . 30 . . . 5 5 3 2 AOE 108 | . 28 . 20 3 . 1 15 27 12 2 Classes Destroyed 17 | . 7 . 5 . . 1 . 2 1 1 Worker 16 | . 1 . 6 . . . 4 . 5 . Builder 15 | . 2 . 7 . . . 4 . 2 . Tunneler 4 | . 2 . 2 . . . . . . . Hauler 10 | . 2 . 4 . . . 1 . 3 . Recycler 4 | . . . 3 . . . . . 1 . Mechanic 5 | . . . 4 . . . . . 1 . Operator 3 | . . . 2 . . . . . 1 . Watcher 8 | . 2 . 4 . . . 1 . 1 . Swarmer 27 | . 6 . 7 . . . 3 11 . . Grunt 96 | . 25 . 32 3 . 1 11 14 8 2 Brawler 6 | . . . 2 . . . 1 1 2 . Duelist 3 | . . . . . . . . 1 1 1 Protector 1 | . . . . . . . . . 1 . Sentry 17 | . . . 9 . . . 5 . 3 . Specialist 1 | . . . . . . . . . . 1 Programmer 5 | . . . . . . . . 5 . . Zionite 1 | . . . . . . 1 . . . . Best Kill Streak 14 | . 6 . 14 3 . 1 13 6 10 3 Combat Bots Only 8 | . 6 . 8 3 . 1 8 6 8 3 Max Kills in Single Turn 4 | . 4 1 4 2 . 1 4 3 3 1 Gunslinging 1 | . . . 1 . . . . . . . Exploded 3 | . 3 . 3 2 . 1 2 3 2 1 Melee . | . . . . . . . . . . . Uniques/NPCs Destroyed 1 | . . 1 . . . . . . . . YI-UF0 (-10/Mines) Combat | -11 -10 -10 -9 -9 -9 -8 -8 -8 -8 -8 -------- Run | Jun Mat Min Mat Min Exi Min Mat Gar Mat Gar Damage Taken 3998 | . 401 . 1523 43 . 50 495 942 449 95 Core 779 | . 113 . 323 24 . 32 43 179 65 . Absorbed by Shields 45 | . . . 20 20 . . . 5 . . Redirected to Shielding 180 | . 58 . 114 . . . . . 8 . Regen/Repaired (Parts) 94 | . 94 . . . . . . . . . Core Remaining (%) 53 | 100 . 54 . . . 5 . . . . Volleys Fired 393 | 1 73 37 138 2 . 3 41 58 37 3 Largest 2 | 2 2 1 2 2 . 2 2 2 2 2 Hottest 70 | 40 40 20 60 60 . 60 60 70 66 66 Shots Fired 675 | 2 99 37 275 4 . 6 78 87 70 17 Gun 447 | 2 52 . 237 . . . 48 50 48 10 Cannon . | . . . . . . . . . . . Launcher 191 | . 47 . 38 4 . 6 30 37 22 7 Special 37 | . . 37 . . . . . . . . Kinetic 437 | 2 52 . 237 . . . 48 50 48 . Thermal 47 | . . 37 . . . . . . . 10 Explosive 191 | . 47 . 38 4 . 6 30 37 22 7 Electromagnetic . | . . . . . . . . . . . Robot Hit Streak 17 | 1 9 7 14 3 . . 11 16 17 9 Robot Miss Streak 8 | 1 3 5 8 . . . 4 3 3 1 Penetration Max . | . . . . . . . . . . . Secondary Targets 9 | . . . 8 . . . . 1 . . Max Gunslinging Chain 1 | . . . 1 . . . . 1 . . Autonomous 10 | . . . . . . . . . . 10 Shots Hit Robots 370 | 1 42 21 172 3 . . 31 46 44 10 Core Hits 375 | . 69 6 130 4 . 3 53 56 47 7 Critical Kills 1 | . . . 1 . . . . . . . Critical Parts Destroyed 4 | . . . 2 . . . . 2 . . Critical Strikes 8 | . . 2 3 . . . 1 2 . . Destroy 6 | . . . 3 . . . 1 2 . . Sever 2 | . . 2 . . . . . . . . Melee Attacks 32 | . . . . . . . . 29 . 3 Impact 32 | . . . . . . . . 29 . 3 Slashing . | . . . . . . . . . . . Piercing . | . . . . . . . . . . . Sneak Attacks . | . . . . . . . . . . . Combat Hostiles . | . . . . . . . . . . . Follow-up Attacks . | . . . . . . . . . . . Damage Inflicted 16067 | 9 2408 231 4984 225 . 267 2379 2733 2346 485 Guns 4709 | 9 377 . 2323 . . . 463 719 547 271 Cannons . | . . . . . . . . . . . Explosions 11127 | . 2031 . 2661 225 . 267 1916 2014 1799 214 Melee . | . . . . . . . . . . . Ramming . | . . . . . . . . . . . Kinetic 4438 | 9 377 . 2323 . . . 463 719 547 . Thermal 502 | . . 231 . . . . . . . 271 Explosive 11127 | . 2031 . 2661 225 . 267 1916 2014 1799 214 Electromagnetic . | . . . . . . . . . . . Impact . | . . . . . . . . . . . Slashing . | . . . . . . . . . . . Piercing . | . . . . . . . . . . . Highest Corruption 5 | . . . . . . . . 5 5 5 Average Corruption 4 | . . . . . . . . 3 5 5 Corruption Purged . | . . . . . . . . . . . Corruption Blocked . | . . . . . . . . . . . Effects 50 | . . . . . . . . 10 23 17 Message Errors 17 | . . . . . . . . 3 8 6 Matter Fused 11 | . . . . . . . . 2 5 4 Heat Flow Errors 3 | . . . . . . . . . 1 2 Energy Discharges 5 | . . . . . . . . 5 . . Parts Fused 1 | . . . . . . . . . 1 . Data Loss (minor) 7 | . . . . . . . . . 3 4 Data Loss (major) 2 | . . . . . . . . . 2 . Misfires 2 | . . . . . . . . . 1 1 Weapon Failures 2 | . . . . . . . . . 2 . Overload Shots . | . . . . . . . . . . . Overflow Damage 161 | . 15 6 33 . . 5 56 36 9 1 Projectiles 6 | . . 6 . . . . . . . . Explosions 155 | . 15 . 33 . . 5 56 36 9 1 Melee . | . . . . . . . . . . . Knockbacks . | . . . . . . . . . . . Impact . | . . . . . . . . . . . Kinetic . | . . . . . . . . . . . Secondary . | . . . . . . . . . . . Self-Inflicted Damage 251 | . 55 . 16 . . . 21 109 4 46 Shots 14 | . 4 . 3 . . . 1 4 1 1 Rammed . | . . . . . . . . . . . Targets Rammed . | . . . . . . . . . . . Kicked . | . . . . . . . . . . . Crushed . | . . . . . . . . . . . Highest Temperature 148 | . 18 . 17 3 . . 99 118 134 148 Average Temperature 29 | . 5 . 5 3 . . 37 35 31 74 Received Heat Transfer 1213 | . 171 . 496 36 . 27 180 60 225 18 Siege Activations . | . . . . . . . . . . . Robots Corrupted . | . . . . . . . . . . . Combat Hostiles . | . . . . . . . . . . . Parts Fried . | . . . . . . . . . . . Impact Corruptions . | . . . . . . . . . . . Robots Melted . | . . . . . . . . . . . Combat Hostiles . | . . . . . . . . . . . Parts Melted . | . . . . . . . . . . . Heat Transferred 1053 | . . 777 . . . . . . . 276 Parts Sabotaged . | . . . . . . . . . . . Parts Stolen . | . . . . . . . . . . . Parts Stripped . | . . . . . . . . . . . Power Chain Reactions . | . . . . . . . . . . . Missiles Intercepted . | . . . . . . . . . . . Alert | -11 -10 -10 -9 -9 -9 -8 -8 -8 -8 -8 ------- Run | Jun Mat Min Mat Min Exi Min Mat Gar Mat Gar Peak Influence 1403 | . 930 354 1319 590 . 46 557 1403 1065 872 Initial 692 | . . 354 137 514 . . 17 362 683 692 Average 642 | . 356 354 743 575 . 26 177 1006 732 821 Maximum Alert Level 4 | . 3 1 4 2 . . 2 4 3 3 Low Security (%) 18 | 100 41 . 6 . . 100 70 . . . Level 1 15 | . 15 100 24 . . . 17 9 . . Level 2 19 | . 20 . 10 100 . . 12 15 55 20 Level 3 31 | . 22 . 35 . . . . 21 44 79 Level 4 15 | . . . 23 . . . . 53 . . Level 5 . | . . . . . . . . . . . High Security . | . . . . . . . . . . . Max Security . | . . . . . . . . . . . Sterilizations 1 | . . . 1 . . . . . . . Squads Dispatched 29 | . 12 . 9 . . . 4 . 4 . Investigation 16 | . 12 . 3 . . . 1 . . . Extermination . | . . . . . . . . . . . Reinforcement 7 | . . . 3 . . . 2 . 2 . Assault 4 | . . . 3 . . . . . 1 . Garrison 2 | . . . . . . . 1 . 1 . Intercept . | . . . . . . . . . . . Searches Triggered . | . . . . . . . . . . . Construction Impeded 2 | . . . 1 . . . 1 . . . Haulers Reinforced . | . . . . . . . . . . . Active Scanning Responses . | . . . . . . . . . . . Cargo Convoy Interrupts . | . . . . . . . . . . . Stealth | -11 -10 -10 -9 -9 -9 -8 -8 -8 -8 -8 --------- Run | Jun Mat Min Mat Min Exi Min Mat Gar Mat Gar Distress Signals 8 | . 1 . 3 . . . 4 . . . Communications Jammed . | . . . . . . . . . . . Distress Signals . | . . . . . . . . . . . Times Spotted 184 | . 34 . 73 3 . 1 24 27 18 4 Peak Tracking Total 6 | . 4 . 6 3 . 1 5 4 5 3 Tactical Retreats 5 | . . . 4 . . . 1 . . . Traps | -11 -10 -10 -9 -9 -9 -8 -8 -8 -8 -8 ------- Run | Jun Mat Min Mat Min Exi Min Mat Gar Mat Gar Traps Triggered 11 | . 2 . 1 . . . . 5 . 3 Indirectly . | . . . . . . . . . . . Trap Hack Attempts . | . . . . . . . . . . . Triggered . | . . . . . . . . . . . Disarmed . | . . . . . . . . . . . Reprogrammed . | . . . . . . . . . . . Reused . | . . . . . . . . . . . Traps Extracted . | . . . . . . . . . . . Installed . | . . . . . . . . . . . Triggered . | . . . . . . . . . . . Exploded 1 | . . . . . 1 . . . . . Machines | -11 -10 -10 -9 -9 -9 -8 -8 -8 -8 -8 ---------- Run | Jun Mat Min Mat Min Exi Min Mat Gar Mat Gar Machines Disabled 23 | . 10 . 2 . . . 4 4 2 1 Max in Single Turn 2 | . 2 . 1 . . . 1 1 1 1 Garrison Relay 4 | . . . . . . . . 3 . 1 Machines Repaired . | . . . . . . . . . . . Machines Sabotaged . | . . . . . . . . . . . Overloaded Fab Kills . | . . . . . . . . . . . Hacking | -11 -10 -10 -9 -9 -9 -8 -8 -8 -8 -8 --------- Run | Jun Mat Min Mat Min Exi Min Mat Gar Mat Gar Machines Accessed 27 | . 11 . 8 . 1 . 2 2 3 . Terminals 20 | . 8 . 7 . . . 1 2 2 . Fabricators . | . . . . . . . . . . . Repair Stations 1 | . 1 . . . . . . . . . Recycling Units 3 | . 2 . 1 . . . . . . . Scanalyzers . | . . . . . . . . . . . Garrison Access 2 | . . . . . . . 1 . 1 . Total Hacks 58 | . 23 . 20 . 1 . 5 5 4 . Successful 28 | . 17 . 7 . 1 . 1 . 2 . Failed 29 | . 6 . 12 . . . 4 5 2 . Catastrophic 4 | . 1 . 3 . . . . . . . Database Lockouts 1 | . . . 1 . . . . . . . Manual 40 | . 17 . 16 . 1 . 3 . 3 . Terminals 46 | . 16 . 19 . . . 3 5 3 . Fabricators . | . . . . . . . . . . . Repair Stations 5 | . 5 . . . . . . . . . Recycling Units 3 | . 2 . 1 . . . . . . . Scanalyzers . | . . . . . . . . . . . Garrison Access 3 | . . . . . . . 2 . 1 . Terminal Hacks 7 | . 3 . 3 . 1 . . . . . Robot Analysis 4 | . 3 . 1 . . . . . . . Prototype ID Bank 1 | . . . 1 . . . . . . . Hauler Manifests 1 | . . . 1 . . . . . . . EX-Prototype ID Bank 1 | . . . . . 1 . . . . . Fabricator Hacks . | . . . . . . . . . . . Repair Station Hacks 4 | . 4 . . . . . . . . . Scan Component 2 | . 2 . . . . . . . . . Repair 2 | . 2 . . . . . . . . . Recycling Unit Hacks . | . . . . . . . . . . . Scanalyzer . | . . . . . . . . . . . Garrison Access Hacks 2 | . . . . . . . 1 . 1 . Unlock Access 2 | . . . . . . . 1 . 1 . Unauthorized Hacks 15 | . 10 . 4 . . . . . 1 . Terminals 12 | . 8 . 3 . . . . . 1 . Assimilate 1 | . . . . . . . . . 1 . Disrupt 3 | . . . 3 . . . . . . . Search 8 | . 8 . . . . . . . . . Fabricators . | . . . . . . . . . . . Repair Stations . | . . . . . . . . . . . Recycling Units 3 | . 2 . 1 . . . . . . . Reject 1 | . . . 1 . . . . . . . Tunnel 2 | . 2 . . . . . . . . . Scanalyzers . | . . . . . . . . . . . Garrison Access . | . . . . . . . . . . . Data Cores Recovered . | . . . . . . . . . . . Used . | . . . . . . . . . . . Hacking Detections 14 | . 3 . 5 . . . 2 2 2 . Full Trace Events 5 | . . . 4 . . . 1 . . . Feedback Events . | . . . . . . . . . . . Feedback Blocked . | . . . . . . . . . . . Robot Schematics Acquired . | . . . . . . . . . . . Robots Built . | . . . . . . . . . . . Authchips . | . . . . . . . . . . . Time . | . . . . . . . . . . . Total Robot Build Rating . | . . . . . . . . . . . Part Schematics Acquired . | . . . . . . . . . . . Parts Built . | . . . . . . . . . . . Authchips . | . . . . . . . . . . . Time . | . . . . . . . . . . . Total Part Build Rating . | . . . . . . . . . . . Parts Repaired 2 | . 2 . . . . . . . . . Time 52 | . 52 . . . . . . . . . Parts Recycled . | . . . . . . . . . . . Recycled Matter . | . . . . . . . . . . . Retrieved Matter . | . . . . . . . . . . . Retrieved Components . | . . . . . . . . . . . Parts Scanalyzed . | . . . . . . . . . . . Part Schematics Acquired . | . . . . . . . . . . . Parts Damaged . | . . . . . . . . . . . Bothacking | -11 -10 -10 -9 -9 -9 -8 -8 -8 -8 -8 ------------ Run | Jun Mat Min Mat Min Exi Min Mat Gar Mat Gar Used RIF Installer 3 | . . . . . . . . 2 . 1 Signal Jammer 1 | . . . . . . . . . . 1 Alert ID Control 1 | . . . . . . . . 1 . . Robots Hacked . | . . . . . . . . . . . Non-combat . | . . . . . . . . . . . Combat . | . . . . . . . . . . . Robot Hacks Applied . | . . . . . . . . . . . Relay Couplers Released 12 | . . . . . . . . 9 . 3 Machine Destruction 12 | . . . . . . . . 9 . 3 Fabnet Peak Effective % . | . . . . . . . . . . . Robots Rewired . | . . . . . . . . . . . Allies Hacked . | . . . . . . . . . . . Hacks Repelled . | . . . . . . . . . . . Allies | -11 -10 -10 -9 -9 -9 -8 -8 -8 -8 -8 -------- Run | Jun Mat Min Mat Min Exi Min Mat Gar Mat Gar Total Allies . | . . . . . . . . . . . Largest Group . | . . . . . . . . . . . Highest-Rated Group . | . . . . . . . . . . . Highest-Rated Ally . | . . . . . . . . . . . Total Orders . | . . . . . . . . . . . Ally Attacks . | . . . . . . . . . . . Total Damage . | . . . . . . . . . . . Kills . | . . . . . . . . . . . Allies Corrupted . | . . . . . . . . . . . Allies Melted . | . . . . . . . . . . . Intel | -11 -10 -10 -9 -9 -9 -8 -8 -8 -8 -8 ------- Run | Jun Mat Min Mat Min Exi Min Mat Gar Mat Gar Robot Analysis Total 4 | . 3 . 1 . . . . . . . Derelict Logs Recovered . | . . . . . . . . . . . Drone Launches . | . . . . . . . . . . . Drone Recoveries . | . . . . . . . . . . . Exploration | -11 -10 -10 -9 -9 -9 -8 -8 -8 -8 -8 ------------- Run | Jun Mat Min Mat Min Exi Min Mat Gar Mat Gar Turns Passed 7894 | 45 1755 203 1820 32 448 121 504 1393 761 812 Spaces Moved 4801 | 35 1374 80 1025 14 446 91 303 879 287 267 Core 153 | 6 . . . . . . . 36 35 76 Treads . | . . . . . . . . . . . Legs . | . . . . . . . . . . . Wheels 4648 | 29 1374 80 1025 14 446 91 303 843 252 191 Hover . | . . . . . . . . . . . Flight . | . . . . . . . . . . . Fastest Speed 50 | 50 90 95 95 100 100 100 82 83 86 115 Average Speed 113 | 90 98 95 101 100 100 100 95 119 148 247 Slowest Speed 650 | 150 115 95 125 100 100 100 100 550 550 650 Overloaded Moves . | . . . . . . . . . . . Propulsion Burnouts . | . . . . . . . . . . . Robots Hopped . | . . . . . . . . . . . Cave-ins Triggered . | . . . . . . . . . . . Exploration Rate (%) 43 | 3 97 23 80 4 87 30 25 83 27 21 Regions Visited 10 Branch Regions 4 Pre-discovered Areas 2 | . 2 . . . . . . . . . Known Exits Taken 2 | . . . . . . . 1 . 1 . Unknown Exits Taken 7 | 1 1 1 1 1 1 1 . . . . Scrap Searched . | . . . . . . . . . . . Spaces Dug 63 | . 35 . 9 . . . . 19 . . Terrain Destroyed 966 | . 242 . 177 45 . 40 95 187 113 67 Melee 10 | . . . . . . . . 10 . . Projectile . | . . . . . . . . . . . AOE 956 | . 242 . 177 45 . 40 95 177 113 67 Terrain Rammed . | . . . . . . . . . . . Walls Destroyed . | . . . . . . . . . . . Machines Disabled . | . . . . . . . . . . . Actions | -11 -10 -10 -9 -9 -9 -8 -8 -8 -8 -8 --------- Run | Jun Mat Min Mat Min Exi Min Mat Gar Mat Gar Total 6492 | 43 1679 131 1550 26 448 115 453 1091 549 407 Wait 1022 | 1 211 4 322 8 . 22 70 63 200 121 Move 4790 | 34 1373 79 1024 13 445 90 302 877 286 267 Hop . | . . . . . . . . . . . Pick Up 50 | 1 13 2 14 . 1 . 7 6 5 1 Fast Attach 37 | 6 4 1 8 1 . . 7 2 7 1 Attach 14 | . . . 5 . . . . 4 . 5 Detach 5 | . . . 1 . . . . 1 . 3 Swap 70 | . 3 5 24 2 . . 12 15 8 1 Drop 47 | . 2 3 14 . 2 . 14 4 6 2 Fire 393 | 1 73 37 138 2 . 3 41 58 37 3 Melee 32 | . . . . . . . . 29 . 3 Ram . | . . . . . . . . . . . Kick . | . . . . . . . . . . . Crush . | . . . . . . . . . . . Escape Stasis 32 | . . . . . . . . 32 . . Rewire . | . . . . . . . . . . . Trap . | . . . . . . . . . . . Miscellaneous . | . . . . . . . . . . . Route ------- -11/Junkyard -10/Materials (discovered 4 exits: *Mat x3 / [*Min]) -10/Mines -9/Materials (discovered 5 exits: *Mat x3 / [*Min x2]) -9/Mines -9/Exiles -8/Mines -8/Materials -8/Garrison (discovered 3 exits: *Mat x3) -8/Materials -8/Garrison History --------- Turn | Location | Event 2 | -11/Junkyard | Met Revision 17 24 | -11/Junkyard | Discovered new exit (range 15) 46 | -11/Junkyard | Entered Materials 238 | -10/Materials | Discovered new exit (range 16) 316 | -10/Materials | Build established: Mutant 348 | -10/Materials | Discovered new exit (range 15) 450 | -10/Materials | Discovered new exit (range 16) 509 | -10/Materials | Discovered new exit (range 10) 1480 | -10/Materials | Repaired Grenade Launcher 1507 | -10/Materials | Repaired Weapon Shielding 1801 | -10/Materials | Entered Mines 1802 | -10/Mines | Assembled infested the area 1807 | -10/Mines | Assisted by a Guerilla fighting off Assembled 1812 | -10/Mines | YI-UF0 nonchalantly dropped a Grenade Launcher on the ground 1871 | -10/Mines | Found Prototype Storage 1953 | -10/Mines | Destroyed YI-UF0 1960 | -10/Mines | Found Prototype Launcher 1960 | -10/Mines | Identified YI-UF0's Doublenader 1962 | -10/Mines | Identified YI-UF0's Bottomless Matter Pit 1976 | -10/Mines | Discovered new exit (range 15) 2004 | -10/Mines | Entered Materials 2004 | -9/Materials | Evolved 2 slots: Utility x2 2024 | -9/Materials | Discovered new exit (range 15) 2221 | -9/Materials | Discovered new exit (range 16) 2724 | -9/Materials | Destroyed 8 combat bots 2782 | -9/Materials | Discovered new exit (range 16) 2804 | -9/Materials | First assault squad dispatched 2917 | -9/Materials | Central database locked down 2955 | -9/Materials | Core integrity fell below 50% 3183 | -9/Materials | Lost 3 parts (3u) 3279 | -9/Materials | Discovered new exit (range 7) 3492 | -9/Materials | Core integrity fell below 20% 3570 | -9/Materials | Discovered new exit (range 12) 3696 | -9/Materials | Sterilization system engaged 3696 | -9/Materials | Non-combat units ordered to evacuate 3796 | -9/Materials | Combat units ordered to evacuate 3824 | -9/Materials | Entered Mines 3844 | -9/Mines | Deemed a non-threat by the Exiles lab entrance 3844 | -9/Mines | Discovered new exit (range 5) 3856 | -9/Mines | Entered Exiles 3880 | -9/Exiles | Met 8R-AWN 3897 | -9/Exiles | Met EX-HEX 3926 | -9/Exiles | Met EX-BIN 3939 | -9/Exiles | Met EX-DEC 4055 | -9/Exiles | Visited The Gauntlet 4176 | -9/Exiles | Aligned with FarCom system 4177 | -9/Exiles | Given EX-Vault access code 4200 | -9/Exiles | Opened EX-Vault 4208 | -9/Exiles | Found AWS/Thermal 4228 | -9/Exiles | Warned to stay clear of 0b10 Research branches 4244 | -9/Exiles | Exiles lab attacked by MAIN.C 4290 | -9/Exiles | Discovered new exit (range 14) 4304 | -9/Exiles | Left Exiles lab with AWS/Thermal 4304 | -9/Exiles | Entered Mines 4411 | -8/Mines | Discovered new exit (range 15) 4425 | -8/Mines | Entered Materials 4425 | -8/Materials | Evolved 2 slots: Propulsion x2 4847 | -8/Materials | Build established: Scavenger-Mutant 4864 | -8/Materials | Garrison activated, responded to threat 4914 | -8/Materials | Destroyed 8 combat bots 4928 | -8/Materials | Identified exit to Garrison 4929 | -8/Materials | Entered Garrison 5038 | -8/Garrison | Triggered checkpoint 5061 | -8/Garrison | Triggered checkpoint 5135 | -8/Garrison | Garrison Relay disabled 5155 | -8/Garrison | Triggered checkpoint 5201 | -8/Garrison | Installed Relay Interface Framework 5213 | -8/Garrison | Discovered new exit (range 3) 5239 | -8/Garrison | Identified exit to Materials 5333 | -8/Garrison | Triggered checkpoint 5437 | -8/Garrison | Discovered exit to Materials (range 12) 5444 | -8/Garrison | Triggered checkpoint 5472 | -8/Garrison | Triggered checkpoint 5573 | -8/Garrison | Triggered checkpoint 5624 | -8/Garrison | Discovered exit to Materials (range 14) 5656 | -8/Garrison | Triggered checkpoint 5699 | -8/Garrison | Garrison Relay disabled 5807 | -8/Garrison | Lost 4 parts (1p2n1u) 5810 | -8/Garrison | Expanded RIF knowledge: Alert ID Control 6063 | -8/Garrison | Build established: Mutant 6322 | -8/Garrison | Entered Materials 6722 | -8/Materials | First assault squad dispatched 6831 | -8/Materials | Destroyed 8 combat bots 6959 | -8/Materials | Build established: Scavenger-Mutant 7009 | -8/Materials | Garrison activated, responded to threat 7054 | -8/Materials | Core integrity fell below 50% 7082 | -8/Materials | Identified exit to Garrison 7083 | -8/Materials | Entered Garrison 7173 | -8/Garrison | Expanded RIF knowledge: Signal Jamming 7340 | -8/Garrison | Triggered checkpoint 7363 | -8/Garrison | Build established: Mutant 7411 | -8/Garrison | Garrison Relay disabled 7895 | -8/Garrison | Self-destructed Last Messages --------------- 07350_ X-62 Marksman destroyed. 07350_ Acquired 48 matter. 07357_ F57HT4 CJAZNVX8:E8UAE89 07404_ System corrupted: Component data lost. 07411_ Garrison Relay disabled. 07411_ Relay Coupler [NC] tumbles out of relay unit. 07411_ Relay Coupler [Grunt] tumbles out of relay unit. 07411_ Relay Coupler [NC] tumbles out of relay unit. 07420_ Triggered Alarm Trap. 07420_ RIF jams signal. 07435_ System corrupted: Heat flow error (+172). 07478_ JU2WTYCSWR4FROF T